fUST/lending_fUST_20240520
["ID","MTS","AMOUNT","RATE_DAILY","PERIOD"]
[327540201,1716197880430,-500.0,0.00044657,33]
[327540202,1716197880458,-3149.25,0.00044657,33]
[327540203,1716197880484,-500.0,0.00044657,33]
[327540204,1716197880512,-500.0,0.00044657,33]
[327540205,1716197880538,-782.66,0.00044657,33]
[327540206,1716197880565,-514.38159895,0.00044657,33]
[327540207,1716197880591,-500.0,0.00044657,33]
[327540208,1716197880621,-500.0,0.00044657,33]
[327540209,1716197880647,-500.0,0.00044657,33]
[327540210,1716197880673,-261.19756588,0.00044657,33]
[327540211,1716197880700,-849.15,0.00044657,21]
[327540212,1716197880728,-500.0,0.00044657,33]
[327540213,1716197880754,-512.54788317,0.00044657,33]
[327540214,1716197880782,-520.69629922,0.00044657,33]
[327540215,1716197880808,-564.54,0.00044657,33]
[327540216,1716197880834,-2611.13,0.00044657,33]
[327540217,1716197880860,-500.0,0.00044657,33]
[327540218,1716197880887,-500.0,0.00044657,33]
[327540219,1716197880914,-1155.5,0.00044657,33]
[327540220,1716197880940,-500.0,0.00044657,33]
[327540221,1716197880966,-500.0,0.00044657,33]
[327540222,1716197880992,-503.94026831,0.00044657,33]
[327540223,1716197881018,-500.0,0.00044657,33]
[327540224,1716197881046,-26814.17,0.00044657,33]
[327540225,1716197881073,-500.0,0.00044657,33]
[327540226,1716197881103,-1202.38,0.00044657,33]
[327540227,1716197881129,-500.0,0.00044657,33]
[327540228,1716197881156,-500.0,0.00044657,33]
[327540229,1716197881186,-611.52,0.00044657,33]
[327540230,1716197881211,-326.15825403,0.00044657,33]
[327540231,1716197881241,-500.0,0.00044657,33]
[327540232,1716197881268,-500.0,0.00044657,33]
[327540233,1716197881294,-500.0,0.00044657,33]
[327540234,1716197881319,-971.52,0.00044657,33]
[327540235,1716197881345,-500.0,0.00044657,33]
[327540236,1716197881370,-500.0,0.00044657,33]
[327540237,1716197881396,-500.0,0.00044657,33]
[327540238,1716197881422,-500.0,0.00044657,33]
[327540239,1716197881509,-500.0,0.00044657,33]
[327540240,1716197881537,-500.0,0.00044657,33]
[327540241,1716197881562,-386.39045008,0.00044657,33]
[327540242,1716197881593,-2482.96,0.00044657,33]
[327540243,1716197881619,-618.48673966,0.00044698,120]
[327540244,1716197881644,-323.0,0.00044877,90]
[327540245,1716197881670,-1063.94,0.00044931,34]
[327540246,1716197881696,-1306.3,0.00044931,34]
[327540247,1716197881720,-500.0,0.00044931,34]
[327540248,1716197881747,-500.0,0.00044931,34]
[327540249,1716197881773,-500.0,0.00044931,34]
[327540250,1716197881798,-510.91,0.00044931,34]
[327540251,1716197881824,-2487.5,0.00044931,34]
[327540252,1716197881851,-529.17,0.00044931,34]
[327540253,1716197881878,-500.0,0.00044931,34]
[327540254,1716197881905,-500.0,0.00044931,34]
[327540255,1716197881931,-500.0,0.00044931,34]
[327540256,1716197881959,-500.0,0.00044931,34]
[327540257,1716197881986,-500.0,0.00044931,34]
[327540258,1716197882012,-500.0,0.00044931,34]
[327540259,1716197882038,-500.0,0.00044931,34]
[327540260,1716197882063,-500.0,0.00044931,34]
[327540261,1716197882091,-500.0,0.00044931,34]
[327540262,1716197882116,-510.65156435,0.00044931,34]
[327540263,1716197882142,-613.20050679,0.00044931,34]
[327540264,1716197882170,-500.0,0.00044931,34]
[327540265,1716197882195,-500.0,0.00044931,34]
[327540266,1716197882220,-593.17,0.00044931,34]
[327540267,1716197882245,-500.0,0.00044931,34]
[327540268,1716197882270,-558.83,0.00044931,34]
[327540269,1716197882295,-627.14471762,0.00044931,34]
[327540270,1716197882320,-906.0,0.00044931,34]
[327540271,1716197882344,-500.0,0.00044931,34]
[327540272,1716197882369,-500.0,0.00044931,34]
[327540273,1716197882393,-345.41047288,0.00044931,34]
[327540274,1716197882417,-500.0,0.00044931,30]
[327540275,1716197882441,-500.0,0.00044931,34]
[327540276,1716197882466,-500.0,0.00044931,34]
[327540277,1716197882490,-500.0,0.00044931,34]
[327540278,1716197882513,-500.0,0.00044931,34]
[327540279,1716197882537,-500.0,0.00044931,34]
[327540280,1716197882561,-500.0,0.00044931,34]
[327540281,1716197882646,-500.0,0.00044931,34]
[327540282,1716197882674,-5426.31,0.00044931,34]
[327540283,1716197882699,-500.0,0.00044931,34]
[327540284,1716197882724,-500.0,0.00044931,34]
[327540285,1716197882750,-506.82799839,0.00044931,34]
[327540286,1716197882775,-515.58096234,0.00044931,34]
[327540287,1716197882801,-500.0,0.00044931,34]
[327540288,1716197882827,-500.0,0.00044931,34]
[327540289,1716197882854,-500.0,0.00044931,34]
[327540290,1716197882879,-500.0,0.00044931,20]
[327540291,1716197882906,-673.01,0.00044931,34]
[327540292,1716197882931,-500.0,0.00044931,34]
[327540293,1716197882956,-500.0,0.00044931,30]
[327540294,1716197882982,-285.37331369,0.00044931,34]
[327540295,1716197883008,-987.08,0.00044931,34]
[327540296,1716197883034,-3801.35,0.00044931,34]
[327540297,1716197883061,-500.0,0.00044931,34]
[327540298,1716197883090,-552.64015714,0.00044931,34]
[327540299,1716197883116,-695.43,0.00044931,34]
[327540300,1716197883142,-543.1,0.00044931,34]
[327540301,1716197883169,-5302.64,0.00044931,34]
[327540302,1716197883196,-582.49,0.00044931,34]
[327540303,1716197883224,-500.0,0.00044931,34]
[327540304,1716197883252,-300.31129858,0.00044931,34]
[327540306,1716198340180,-265.42040767,0.00018121,2]
[327540307,1716198433103,-3614.15353477,0.00018121,2]
[327540369,1716198638744,-999.82640003,0.00018121,2]
[327540370,1716198638845,-379.27868503,0.00018121,2]
[327540475,1716198641377,-14767.63264814,0.00018121,2]
[327540476,1716198641387,-364.91402204,0.00018121,2]
[327540477,1716198641396,-154.81422293,0.00018121,2]
[327540478,1716198641405,-3373.07904587,0.00018121,2]
[327540479,1716198641416,-6358.15910996,0.00018121,2]
[327540480,1716198641426,-154.84515485,0.00018986,2]
[327540481,1716198641435,-165.21518713,0.00019077,2]
[327540483,1716198641444,-165.2151871,0.00019077,2]
[327540485,1716198641454,-165.2151871,0.00019078,2]
[327540486,1716198641463,-165.2151871,0.00019078,2]
[327540487,1716198641472,-620.33969898,0.00019092,2]
[327540488,1716198641481,-1581.20220046,0.00019174,2]
[327540489,1716198641491,-6120.73360483,0.00019174,2]
[327540490,1716198641604,-528.50433123,0.00019174,2]
[327540491,1716198641614,-156.01283754,0.00019174,2]
[327540492,1716198641624,-155.40221496,0.00019175,2]
[327540493,1716198641633,-1755.73053112,0.00019175,2]
[327540494,1716198641642,-895.99360919,0.00019176,2]
[327540495,1716198641651,-155.16359911,0.00019176,2]
[327540496,1716198641661,-1608.31893164,0.00019176,2]
[327540497,1716198641671,-274.0226886,0.00019176,2]
[327540498,1716198641679,-24859.74618066,0.00019176,2]
[327540499,1716198641688,-3060.26446828,0.00019177,2]
[327540500,1716198641698,-2287.89102262,0.00019178,3]
[327540501,1716198641707,-932.87944449,0.00019178,2]
[327540502,1716198641716,-1486.91923368,0.00019178,2]
[327540503,1716198641725,-500.0,0.00019178,2]
[327540504,1716198641735,-1486.91923368,0.00019178,2]
[327540505,1716198641744,-525.26199137,0.00019178,2]
[327540506,1716198641755,-1486.91923368,0.00019178,2]
[327540507,1716198641764,-1486.91923368,0.00019178,2]
[327540508,1716198641774,-1486.91923368,0.00019178,2]
[327540509,1716198641784,-1486.91923368,0.00019178,2]
[327540510,1716198641793,-1486.91923368,0.00019178,2]
[327540511,1716198641803,-1486.91923368,0.00019178,2]
[327540512,1716198641812,-1486.91923368,0.00019178,2]
[327540513,1716198641821,-1486.91923368,0.00019178,2]
[327540514,1716198641830,-1486.91923368,0.00019178,2]
[327540515,1716198641839,-1486.91923368,0.00019178,2]
[327540516,1716198641849,-1486.91923368,0.00019178,2]
[327540517,1716198641858,-1486.91923368,0.00019178,2]
[327540518,1716198641867,-764.58383028,0.00019178,2]
[327540543,1716198644181,-722.3354034,0.00019178,2]
[327540544,1716198644191,-1486.91923368,0.00019178,2]
[327540545,1716198644200,-1486.91923368,0.00019178,2]
[327540546,1716198644209,-1486.91923368,0.00019178,2]
[327540547,1716198644218,-499.99999999,0.00019178,2]
[327540548,1716198644228,-1950.99620975,0.00019178,2]
[327540571,1716198648373,-838.51626036,0.00019074,2]
[327540572,1716198648384,-7435.46349824,0.00019178,2]
[327540573,1716198648395,-900.42809221,0.00019178,2]
[327540574,1716198648407,-8486.03161578,0.00019178,2]
[327540575,1716198648417,-9386.45970799,0.00019178,2]
[327540576,1716198648429,-500.0,0.00019178,2]
[327540577,1716198648438,-6487.25485689,0.00019178,2]
[327540581,1716199092483,9987.6,0.00019,10]
[327540582,1716199549171,-471.05093794,0.00017852,2]
[327540583,1716199636118,-3373.07904587,0.00017852,2]
[327540584,1716199636148,-290.55058416,0.00017852,2]
[327540585,1716199636176,-250.0,0.00017937,2]
[327540586,1716199636204,-222.6935186,0.00018121,2]
[327540587,1716199636231,-363.0274328,0.00018121,2]
[327540588,1716199636260,-1407.35725346,0.00018121,2]
[327540589,1716199636287,-487.47004082,0.00018158,2]
[327540639,1716199833032,-3373.07904587,0.00018158,2]
[327540642,1716199833041,-698.8661688,0.00018264,2]
[327540645,1716199833050,-175.52933094,0.000189,2]
[327540647,1716199833059,-175.0,0.00018969,2]
[327540648,1716199833070,-4221.46001999,0.00018982,2]
[327540650,1716199833079,-733.70172785,0.00019078,2]
[327540652,1716199833088,-2171.23222617,0.00019078,2]
[327540654,1716199833098,-238.72491025,0.00019176,2]
[327540656,1716199833107,-275.88025216,0.00019176,2]
[327540658,1716199833116,-1401.61857641,0.00019176,2]
[327540660,1716199833125,-195.57177622,0.00019177,2]
[327540662,1716199833135,-10580.58229693,0.00019178,3]
[327540664,1716199833144,-2899.2048511,0.00019178,2]
[327540666,1716199833153,-500.0,0.00019178,2]
[327540668,1716199833162,-500.0,0.00019178,2]
[327540670,1716199833171,-500.0,0.00019178,2]
[327540672,1716199833181,-500.0,0.00019178,2]
[327540674,1716199833191,-5664.76475787,0.00019178,2]
[327540676,1716199833204,-530.68111469,0.00019178,2]
[327540679,1716199833215,-3191.01383543,0.00019178,2]
[327540680,1716199833224,-550.0,0.00019178,2]
[327540682,1716199833233,-2648.7944478,0.00019178,2]
[327540758,1716199838202,-330.97977086,0.00019178,2]
[327540763,1716199838242,-2263.99752876,0.00019178,2]
[327540798,1716199841871,-4142.68796057,0.00019178,2]
[327540799,1716199841881,-500.0,0.00019178,2]
[327540800,1716199841892,-500.0,0.00019178,2]
[327540801,1716199841903,-1237.02130692,0.00019178,2]
[327540802,1716199841963,-1015.30959757,0.00019178,2]
[327540824,1716199843379,-5380.23107841,0.00019178,2]
[327540826,1716199843391,-1643.74105582,0.00019178,2]
[327540831,1716199843588,-110.15666927,0.00019178,2]
[327540832,1716199843598,-5902.35690148,0.00019178,2]
[327540846,1716199928162,1496.69412767,9.999e-05,2]
[327540847,1716199964611,273.37336231,9.9e-05,2]
[327540848,1716200064312,273.37336231,9.9e-05,2]
[327540849,1716200072223,273.37336231,9.9e-05,2]
[327540850,1716200080406,273.37336231,9.9e-05,2]
[327540851,1716200089415,273.37336231,9.9e-05,2]
[327540852,1716200098990,273.37336231,9.9e-05,2]
[327540865,1716200759068,-163.187949,0.00018074,2]
[327540866,1716200759093,-386.41902029,0.00018158,2]
[327540867,1716200840094,-600.7558825,0.00018158,2]
[327540868,1716200840126,-1092.90079528,0.00018158,2]
[327540869,1716200846123,-344.23604657,0.00018158,2]
[327540870,1716200846147,-152.0,0.00018417,2]
[327540871,1716200846169,-158.17289321,0.000189,2]
[327540872,1716200846193,-620.01698495,0.00019045,2]
[327540873,1716200846213,-2000.0,0.00019078,2]
[327540874,1716200846235,-9055.66477702,0.00019172,2]
[327541008,1716201033938,-150.0,0.000189,2]
[327541011,1716201033948,-1885.8334935,0.00019077,2]
[327541014,1716201033958,-1353.46440852,0.00019078,2]
[327541072,1716201038932,-152.0,0.00019077,2]
[327541074,1716201038942,-646.53559148,0.00019078,2]
[327541076,1716201038951,-17880.59941761,0.00019172,2]
[327541078,1716201038960,-407.45193683,0.00019173,2]
[327541080,1716201038969,-1418.17133306,0.00019173,2]
[327541082,1716201038978,-958.86806359,0.00019176,2]
[327541084,1716201038988,-157.82356406,0.00019176,2]
[327541086,1716201038998,-1450.2482319,0.00019176,2]
[327541088,1716201039007,-1461.39503178,0.00019176,2]
[327541090,1716201039017,-942.53705457,0.00019176,2]
[327541092,1716201039025,-3116.35193178,0.00019176,2]
[327541094,1716201039035,-219.18319864,0.00019176,2]
[327541096,1716201039044,-1343.71012718,0.00019176,2]
[327541098,1716201039053,-2669.74226315,0.00019176,2]
[327541100,1716201039062,-1091.68962702,0.00019176,2]
[327541102,1716201039071,-16785.24358246,0.00019176,2]
[327541104,1716201039081,-1943.8894411,0.00019176,2]
[327541106,1716201039090,-690.19911136,0.00019177,2]
[327541107,1716201039099,-756.87597082,0.00019177,2]
[327541109,1716201039108,-4279.55607173,0.00019178,3]
[327541112,1716201039120,-1010.73507673,0.00019178,3]
[327541114,1716201039130,-3204.83564791,0.00019178,2]
[327541442,1716201042574,-279.2671586,0.00019178,2]
[327541444,1716201042584,-222.71492911,0.00019178,2]
[327541446,1716201042596,-277.28507089,0.00019178,2]
[327541448,1716201042605,-9386.45970799,0.00019178,2]
[327541450,1716201042615,-500.0,0.00019178,2]
[327541452,1716201042624,-9386.45970799,0.00019178,2]
[327541454,1716201042633,-9386.45970799,0.00019178,2]
[327541456,1716201042642,-500.0,0.00019178,2]
[327541458,1716201042651,-9386.45970799,0.00019178,2]
[327541460,1716201042660,-9386.45970799,0.00019178,2]
[327541462,1716201042669,-500.0,0.00019178,2]
[327541474,1716201042782,-500.0,0.00019178,2]
[327541476,1716201042792,-9386.45970799,0.00019178,2]
[327541478,1716201042802,-500.0,0.00019178,2]
[327541479,1716201042811,-9386.45970799,0.00019178,2]
[327541481,1716201042821,-500.0,0.00019178,2]
[327541483,1716201042831,-9386.45970799,0.00019178,2]
[327541485,1716201042840,-500.0,0.00019178,2]
[327541487,1716201042849,-500.0,0.00019178,2]
[327541489,1716201042858,-9386.45970799,0.00019178,2]
[327541491,1716201042867,-500.0,0.00019178,2]
[327541493,1716201042877,-9386.45970799,0.00019178,2]
[327541496,1716201042886,-500.0,0.00019178,2]
[327541498,1716201042895,-500.0,0.00019178,2]
[327541500,1716201042904,-500.0,0.00019178,2]
[327541502,1716201042913,-500.0,0.00019178,2]
[327541504,1716201042923,-500.0,0.00019178,2]
[327541506,1716201042934,-499.99999999,0.00019178,2]
[327541508,1716201042943,-500.0,0.00019178,2]
[327541511,1716201042952,-292.84780326,0.00019178,2]
[327541513,1716201042965,-207.15219674,0.00019178,2]
[327541515,1716201042975,-500.0,0.00019178,2]
[327541517,1716201042984,-500.0,0.00019178,2]
[327541519,1716201042993,-500.0,0.00019178,2]
[327541521,1716201043003,-500.0,0.00019178,2]
[327541523,1716201043012,-500.0,0.00019178,2]
[327541525,1716201043023,-500.0,0.00019178,2]
[327541527,1716201043033,-500.0,0.00019178,2]
[327541529,1716201043042,-500.0,0.00019178,2]
[327541531,1716201043051,-500.0,0.00019178,2]
[327541533,1716201043061,-500.0,0.00019178,2]
[327541534,1716201043071,-500.0,0.00019178,2]
[327541536,1716201043080,-500.0,0.00019178,2]
[327541538,1716201043089,-500.0,0.00019178,2]
[327541540,1716201043099,-500.0,0.00019178,2]
[327541542,1716201043109,-500.0,0.00019178,2]
[327541544,1716201043118,-615.0,0.00019178,2]
[327541546,1716201043127,-500.0,0.00019178,2]
[327541548,1716201043137,-500.0,0.00019178,2]
[327541550,1716201043146,-500.0,0.00019178,2]
[327541552,1716201043158,-500.0,0.00019178,2]
[327541554,1716201043168,-301.55153074,0.00019178,2]
[327541556,1716201043178,-500.0,0.00019178,2]
[327541558,1716201043187,-500.0,0.00019178,2]
[327541560,1716201043196,-434.31472231,0.00019178,2]
[327541562,1716201043206,-500.0,0.00019178,2]
[327541564,1716201043216,-200.0,0.00019178,2]
[327541567,1716201043225,-500.0,0.00019178,2]
[327541569,1716201043236,-500.0,0.00019178,2]
[327541571,1716201043245,-589.06171677,0.00019178,2]
[327541573,1716201043254,-500.0,0.00019178,2]
[327541575,1716201043264,-283.83978839,0.00019178,2]
[327541577,1716201043273,-500.0,0.00019178,2]
[327541579,1716201043282,-500.0,0.00019178,2]
[327541581,1716201043291,-500.0,0.00019178,2]
[327541583,1716201043300,-446.50094099,0.00019178,2]
[327541585,1716201043310,-500.0,0.00019178,2]
[327541586,1716201043320,-500.0,0.00019178,2]
[327541588,1716201043330,-500.0,0.00019178,2]
[327541590,1716201043339,-500.0,0.00019178,2]
[327541592,1716201043348,-163.3738543,0.00019178,2]
[327541594,1716201043358,-500.0,0.00019178,2]
[327541596,1716201043367,-500.0,0.00019178,2]
[327541598,1716201043376,-500.0,0.00019178,2]
[327541600,1716201043385,-500.0,0.00019178,2]
[327541602,1716201043395,-434.73683231,0.00019178,2]
[327541604,1716201043404,-500.0,0.00019178,2]
[327541606,1716201043413,-500.0,0.00019178,2]
[327541608,1716201043423,-500.0,0.00019178,2]
[327541610,1716201043434,-500.0,0.00019178,2]
[327541612,1716201043443,-500.0,0.00019178,2]
[327541614,1716201043452,-500.0,0.00019178,2]
[327541616,1716201043462,-500.0,0.00019178,2]
[327541618,1716201043471,-326.74770861,0.00019178,2]
[327541620,1716201043479,-500.0,0.00019178,2]
[327541622,1716201043489,-500.0,0.00019178,2]
[327541624,1716201043498,-500.0,0.00019178,2]
[327541626,1716201043507,-500.0,0.00019178,2]
[327541628,1716201043516,-500.0,0.00019178,2]
[327541629,1716201043525,-500.0,0.00019178,2]
[327541631,1716201043535,-500.0,0.00019178,2]
[327541633,1716201043544,-500.0,0.00019178,2]
[327541635,1716201043553,-500.0,0.00019178,2]
[327541637,1716201043562,-290.568624,0.00019178,2]
[327541639,1716201043572,-197.0909372,0.00019178,2]
[327541642,1716201043581,-2626.98669807,0.000199,3]
[327541645,1716201043591,-67442.42489496,0.000199,2]
[327541663,1716201043757,-5379.74226234,0.000199,2]
[327541665,1716201043773,-6224.4301551,0.000199,2]
[327541667,1716201043785,-1701.781057,0.000199,2]
[327541670,1716201043797,-1804.323423,0.000199,2]
[327541672,1716201043808,-3012.47132687,0.000199,2]
[327541674,1716201043819,-3322.82688073,0.000199,2]
[327541676,1716201043828,-620.00084925,0.00019997,2]
[327541678,1716201043838,-20876.78558306,0.0002,2]
[327541680,1716201043848,-9492.32763045,0.0002,2]
[327541884,1716201047992,-1884.25402905,0.00019177,2]
[327541886,1716201048003,-2432.72164391,0.0002,2]
[327541901,1716201048132,-1885.8334935,0.0002,2]
[327542709,1716201248155,273.37336231,9.9e-05,2]
[327542711,1716201256259,273.37336231,9.9e-05,2]
[327542721,1716201264462,273.37336231,9.9e-05,2]
[327542723,1716201272566,273.37336231,9.9e-05,2]
[327542730,1716201280916,273.37336231,9.9e-05,2]
[327542733,1716201288789,273.37336231,9.9e-05,2]
[327542734,1716201297663,273.37336231,9.9e-05,2]
[327542739,1716201305186,-1084.80140853,0.000165,2]
[327542740,1716201305209,-986.45755068,0.0001874,2]
[327542741,1716201305236,-953.29958144,0.00019078,2]
[327542742,1716201305264,-500.0,0.00019899,2]
[327542743,1716201305289,-310.81862991,0.00019899,2]
[327542744,1716201305312,-500.0,0.00019899,2]
[327542745,1716201305337,-500.0,0.00019899,2]
[327542746,1716201305360,-308.11421103,0.00019899,2]
[327542747,1716201305381,-641.98901186,0.000199,2]
[327542748,1716201305406,-44214.51960655,0.000199,2]
[327542749,1716201305692,273.37336231,9.9e-05,2]
[327542750,1716201314380,273.37336231,9.9e-05,2]
[327542754,1716201322813,273.37336231,9.9e-05,2]
[327542756,1716201331352,273.37336231,9.9e-05,2]
[327542759,1716201339195,273.37336231,9.9e-05,2]
[327542762,1716201353167,273.37336231,9.9e-05,2]
[327542765,1716201362614,273.37336231,9.9e-05,2]
[327542768,1716201370496,273.37336231,9.9e-05,2]
[327542769,1716201378808,273.37336231,9.9e-05,2]
[327542771,1716201384568,888.0,0.0002651,120]
[327542773,1716201386765,273.37336231,9.9e-05,2]
[327542774,1716201395608,273.37336231,9.9e-05,2]
[327542775,1716201397852,888.0,0.00025,60]
[327542777,1716201403479,273.37336231,9.9e-05,2]
[327542779,1716201412341,273.37336231,9.9e-05,2]
[327542780,1716201419674,888.0,0.0002651,120]
[327542781,1716201420773,273.37336231,9.9e-05,2]
[327542782,1716201429001,273.37336231,9.9e-05,2]
[327542783,1716201431905,888.0,0.00025,60]
[327542784,1716201432926,487.0,0.00025,60]
[327542796,1716201437015,273.37336231,9.9e-05,2]
[327542797,1716201445495,273.37336231,9.9e-05,2]
[327542798,1716201450720,888.0,0.0002421,30]
[327542799,1716201453307,273.37336231,9.9e-05,2]
[327542800,1716201461474,273.37336231,9.9e-05,2]
[327542801,1716201464730,555.0,0.0002651,120]
[327542803,1716201470005,273.37336231,9.9e-05,2]
[327542804,1716201479015,273.37336231,9.9e-05,2]
[327542805,1716201487435,273.37336231,9.9e-05,2]
[327542806,1716201495569,273.37336231,9.9e-05,2]
[327542807,1716201503972,273.37336231,9.9e-05,2]
[327542808,1716201512125,273.37336231,9.9e-05,2]
[327542809,1716201520029,273.37336231,9.9e-05,2]
[327542810,1716201528727,273.37336231,9.9e-05,2]
[327542811,1716201536661,273.37336231,9.9e-05,2]
[327542814,1716201543278,301.0153862,0.0002651,120]
[327542815,1716201545151,273.37336231,9.9e-05,2]
[327542816,1716201553662,273.37336231,9.9e-05,2]
[327542817,1716201562410,273.37336231,9.9e-05,2]
[327542818,1716201570231,273.37336231,9.9e-05,2]
[327542820,1716201578594,273.37336231,9.9e-05,2]
[327542829,1716201587129,273.37336231,9.9e-05,2]
[327542830,1716201595797,273.37336231,9.9e-05,2]
[327542831,1716201603782,273.37336231,9.9e-05,2]
[327542832,1716201611919,273.37336231,9.9e-05,2]
[327542833,1716201619744,273.37336231,9.9e-05,2]
[327542839,1716201627989,273.37336231,9.9e-05,2]
[327542840,1716201636108,273.37336231,9.9e-05,2]
[327542841,1716201644396,273.37336231,9.9e-05,2]
[327542842,1716201653421,273.37336231,9.9e-05,2]
[327542843,1716201661523,273.37336231,9.9e-05,2]
[327542844,1716201669372,273.37336231,9.9e-05,2]
[327542846,1716201678145,273.37336231,9.9e-05,2]
[327542847,1716201687148,273.37336231,9.9e-05,2]
[327542848,1716201695498,273.37336231,9.9e-05,2]
[327542849,1716201703478,273.37336231,9.9e-05,2]
[327542850,1716201711616,273.37336231,9.9e-05,2]
[327542851,1716201720631,273.37336231,9.9e-05,2]
[327542852,1716201728828,273.37336231,9.9e-05,2]
[327542862,1716201738169,273.37336231,9.9e-05,2]
[327542863,1716201747958,273.37336231,9.9e-05,2]
[327542864,1716201756418,273.37336231,9.9e-05,2]
[327542865,1716201765177,273.37336231,9.9e-05,2]
[327542866,1716201773157,273.37336231,9.9e-05,2]
[327542867,1716201781302,273.37336231,9.9e-05,2]
[327542868,1716201789429,273.37336231,9.9e-05,2]
[327542869,1716201797480,273.37336231,9.9e-05,2]
[327542870,1716201805378,273.37336231,9.9e-05,2]
[327542871,1716201814164,273.37336231,9.9e-05,2]
[327542872,1716201822615,273.37336231,9.9e-05,2]
[327542873,1716201831297,273.37336231,9.9e-05,2]
[327542874,1716201840099,273.37336231,9.9e-05,2]
[327542876,1716201848320,273.37336231,9.9e-05,2]
[327542877,1716201856188,273.37336231,9.9e-05,2]
[327542878,1716201864323,273.37336231,9.9e-05,2]
[327542879,1716201872806,273.37336231,9.9e-05,2]
[327542880,1716201880917,273.37336231,9.9e-05,2]
[327542881,1716201888845,273.37336231,9.9e-05,2]
[327542882,1716201896933,273.37336231,9.9e-05,2]
[327542883,1716201904846,273.37336231,9.9e-05,2]
[327542884,1716201912985,273.37336231,9.9e-05,2]
[327542885,1716201921388,273.37336231,9.9e-05,2]
[327542886,1716201931220,273.37336231,9.9e-05,2]
[327542887,1716201932141,-477.62464383,0.00018,2]
[327542888,1716201939088,273.37336231,9.9e-05,2]
[327542889,1716201947179,273.37336231,9.9e-05,2]
[327542896,1716201955029,273.37336231,9.9e-05,2]
[327542897,1716201963756,273.37336231,9.9e-05,2]
[327542898,1716201971655,273.37336231,9.9e-05,2]
[327542899,1716201980070,273.37336231,9.9e-05,2]
[327542900,1716201987934,273.37336231,9.9e-05,2]
[327542901,1716201996670,273.37336231,9.9e-05,2]
[327542902,1716202005231,273.37336231,9.9e-05,2]
[327542903,1716202013377,273.37336231,9.9e-05,2]
[327542908,1716202021713,273.37336231,9.9e-05,2]
[327542909,1716202030101,273.37336231,9.9e-05,2]
[327542910,1716202038074,273.37336231,9.9e-05,2]
[327542911,1716202046819,273.37336231,9.9e-05,2]
[327542912,1716202048103,-258.9436542,0.00018,2]
[327542913,1716202054674,273.37336231,9.9e-05,2]
[327542914,1716202063447,273.37336231,9.9e-05,2]
[327542915,1716202071306,273.37336231,9.9e-05,2]
[327542919,1716202080583,273.37336231,9.9e-05,2]
[327542920,1716202088535,273.37336231,9.9e-05,2]
[327542921,1716202098034,273.37336231,9.9e-05,2]
[327542922,1716202106475,273.37336231,9.9e-05,2]
[327543034,1716202239104,-265.4204077,0.00018898,2]
[327543036,1716202239115,-239.86730489,0.000197,2]
[327543037,1716202239124,-1683.76212,0.00019898,2]
[327543038,1716202239134,-227.57513538,0.00019998,2]
[327543039,1716202239145,-200.901579,0.00019998,2]
[327543040,1716202239156,-2090.91147137,0.00019999,2]
[327543041,1716202239167,-500.0,0.00019999,2]
[327543043,1716202239177,-436.17467265,0.00019999,2]
[327543046,1716202239187,-420.0,0.00019999,2]
[327543048,1716202239197,-918.53821034,0.00019999,2]
[327543050,1716202239209,-500.0,0.00019999,2]
[327543052,1716202239218,-300.0,0.00019999,2]
[327543053,1716202239227,-186.31578527,0.00019999,2]
[327543055,1716202239237,-500.0,0.00019999,2]
[327543057,1716202239247,-500.0,0.00019999,2]
[327543059,1716202239256,-918.53821034,0.00019999,2]
[327543061,1716202239266,-500.0,0.00019999,2]
[327543063,1716202239275,-918.53821034,0.00019999,2]
[327543065,1716202239285,-500.0,0.00019999,2]
[327543067,1716202239295,-918.53821034,0.00019999,2]
[327543069,1716202239306,-500.0,0.00019999,2]